[Event "2026 Biel Blitz Open"]
[Site "Biel, CH"]
[Date "2026.07.19"]
[Round "9"]
[White "Haimovich, Tal"]
[Black "Schweizer, Samuel"]
[Result "1-0"]
[Board "11"]
[TimeControl "180+2"]
[WhiteFideId "2801698"]
[BlackFideId "1325353"]
[WhiteElo "2347"]
[BlackElo "2006"]
[WhiteTitle "IM"]
[WhiteClock "0:00:19"]
[BlackClock "0:00:33"]
[Variant "Standard"]
[EndDate "2026.07.19"]
[EndTime "14:46:06"]

1. Nf3 {[%clk 0:03:03]}  a6 {[%clk 0:02:58]} 2. b3 {[%clk 0:03:00]}  Nf6 {[%clk 0:02:56]} 3. Bb2 {[%clk 0:03:01]}  b5 {[%clk 0:02:56]}
4. e3 {[%clk 0:03:00]}  Bb7 {[%clk 0:02:56]} 5. Be2 {[%clk 0:03:00]}  d6 {[%clk 0:02:54]} 6. d4 {[%clk 0:02:59]}  g6 {[%clk 0:02:54]}
7. O-O {[%clk 0:02:58]}  Bg7 {[%clk 0:02:55]} 8. c4 {[%clk 0:02:58]}  c6 {[%clk 0:02:53]} 9. Nbd2 {[%clk 0:02:56]}  O-O {[%clk 0:02:52]}
10. e4 {[%clk 0:02:53]}  Ne8 {[%clk 0:02:41]} 11. Qc2 {[%clk 0:02:50]}  Nd7 {[%clk 0:02:41]} 12. Rfd1 {[%clk 0:02:38]}  Rc8 {[%clk 0:02:41]}
13. a4 {[%clk 0:02:30]}  b4 {[%clk 0:02:39]} 14. c5 {[%clk 0:02:28]}  dxc5 {[%clk 0:02:23]} 15. dxc5 {[%clk 0:02:25]}  Bxb2 {[%clk 0:02:23]}
16. Qxb2 {[%clk 0:02:26]}  Nxc5 {[%clk 0:02:20]} 17. a5 {[%clk 0:02:15]}  Qc7 {[%clk 0:02:20]} 18. e5 {[%clk 0:02:13]}  Ng7 {[%clk 0:02:18]}
19. Nc4 {[%clk 0:02:05]}  Rcd8 {[%clk 0:02:15]} 20. h3 {[%clk 0:01:36]}  Ne4 {[%clk 0:02:10]} 21. Re1 {[%clk 0:01:27]}  Nc3 {[%clk 0:02:09]}
22. Bf1 {[%clk 0:01:25]}  c5 {[%clk 0:02:09]} 23. Nh2 {[%clk 0:01:21]}  Ne6 {[%clk 0:02:08]} 24. Qc1 {[%clk 0:01:13]}  Kg7 {[%clk 0:01:45]}
25. Ng4 {[%clk 0:01:13]}  g5 {[%clk 0:01:45]} 26. Nge3 {[%clk 0:01:03]}  Nd4 {[%clk 0:01:40]} 27. Nc2 {[%clk 0:00:47]}  Nxc2 {[%clk 0:01:30]}
28. Qxc2 {[%clk 0:00:47]}  Rd4 {[%clk 0:01:26]} 29. Qf5 {[%clk 0:00:43]}  h6 {[%clk 0:01:24]} 30. Bd3 {[%clk 0:00:35]}  Rh8 {[%clk 0:01:22]}
31. e6 {[%clk 0:00:35]}  Rf4 {[%clk 0:01:19]} 32. Qe5+ {[%clk 0:00:33]}  Qxe5 {[%clk 0:01:19]} 33. Rxe5 {[%clk 0:00:34]}  Rd8 {[%clk 0:01:02]}
34. Bf1 {[%clk 0:00:32]}  Nd5 {[%clk 0:00:57]} 35. exf7 {[%clk 0:00:31]}  Rxf7 {[%clk 0:00:56]} 36. Rd1 {[%clk 0:00:31]}  Rff8 {[%clk 0:00:36]}
37. Rde1 {[%clk 0:00:29]}  Rf7 {[%clk 0:00:35]} 38. g3 {[%clk 0:00:27]}  Nc3 {[%clk 0:00:32]} 39. Rxe7 {[%clk 0:00:27]}  Rd7 {[%clk 0:00:33]}
40. Rxf7+ {[%clk 0:00:27]}  Rxf7 {[%clk 0:00:34]} 41. Nd6 {[%clk 0:00:25]}  Rd7 {[%clk 0:00:35]} 42. Nxb7 {[%clk 0:00:26]}  Rxb7 {[%clk 0:00:36]}
43. Bxa6 {[%clk 0:00:24]}  Ra7 {[%clk 0:00:37]} 44. Bc4 {[%clk 0:00:24]}  Rxa5 {[%clk 0:00:37]} 45. Re7+ {[%clk 0:00:24]}  Kg6 {[%clk 0:00:38]}
46. Re6+ {[%clk 0:00:23]}  Kg7 {[%clk 0:00:39]} 47. Rc6 {[%clk 0:00:23]}  h5 {[%clk 0:00:38]} 48. Kg2 {[%clk 0:00:24]}  Ne4 {[%clk 0:00:33]}
49. Rc7+ {[%clk 0:00:23]}  Kf6 {[%clk 0:00:32]} 50. Bd5 {[%clk 0:00:18]}  Nd6 {[%clk 0:00:33]} 51. Rh7 {[%clk 0:00:14]}  c4 {[%clk 0:00:32]}
52. Bxc4 {[%clk 0:00:14]}  Nxc4 {[%clk 0:00:32]} 53. bxc4 {[%clk 0:00:15]}  Rc5 {[%clk 0:00:32]} 54. Rxh5 {[%clk 0:00:10]}  Kg7 {[%clk 0:00:33]}
55. h4 {[%clk 0:00:06]}  b3 {[%clk 0:00:34]} 56. hxg5 {[%clk 0:00:06]}  Rxc4 {[%clk 0:00:29]} 57. Rh1 {[%clk 0:00:07]}  Kg6 {[%clk 0:00:27]}
58. Rb1 {[%clk 0:00:08]}  Rc3 {[%clk 0:00:28]} 59. f4 {[%clk 0:00:08]}  Kf5 {[%clk 0:00:28]} 60. Kh3 {[%clk 0:00:09]}  Rd3 {[%clk 0:00:28]}
61. Rb2 {[%clk 0:00:09]}  Rc3 {[%clk 0:00:29]} 62. g6 {[%clk 0:00:09]}  Kxg6 {[%clk 0:00:29]} 63. Kg4 {[%clk 0:00:10]}  Kf6 {[%clk 0:00:30]}
64. Kh4 {[%clk 0:00:09]}  Kf5 {[%clk 0:00:31]} 65. Kh3 {[%clk 0:00:09]}  Rd3 {[%clk 0:00:31]} 66. Re2 {[%clk 0:00:10]}  Rc3 {[%clk 0:00:32]}
67. Re5+ {[%clk 0:00:10]}  Kf6 {[%clk 0:00:33]} 68. Rb5 {[%clk 0:00:12]}  Rd3 {[%clk 0:00:33]} 69. Kg4 {[%clk 0:00:12]}  Ke6 {[%clk 0:00:34]}
70. Rb6+ {[%clk 0:00:13]}  Kd5 {[%clk 0:00:34]} 71. f5 {[%clk 0:00:13]}  Ke4 {[%clk 0:00:33]} 72. f6 {[%clk 0:00:13]}  Rf3 {[%clk 0:00:33]}
73. Kh4 {[%clk 0:00:11]}  Ke5 {[%clk 0:00:32]} 74. g4 {[%clk 0:00:11]}  Rxf6 {[%clk 0:00:32]} 75. Rxb3 {[%clk 0:00:12]}  Rf1 {[%clk 0:00:33]}
76. Kg5 {[%clk 0:00:13]}  Ke6 {[%clk 0:00:32]} 77. Kg6 {[%clk 0:00:14]}  Ke7 {[%clk 0:00:33]} 78. Kg7 {[%clk 0:00:10]}  Ke8 {[%clk 0:00:34]}
79. g5 {[%clk 0:00:10]}  Rf7+ {[%clk 0:00:34]} 80. Kh6 {[%clk 0:00:11]}  Rf1 {[%clk 0:00:32]} 81. g6 {[%clk 0:00:11]}  Kf8 {[%clk 0:00:33]}
82. Rb8+ {[%clk 0:00:12]}  Ke7 {[%clk 0:00:34]} 83. Kg7 {[%clk 0:00:14]}  Rf4 {[%clk 0:00:32]} 84. Rb1 {[%clk 0:00:14]}  Ke8 {[%clk 0:00:32]}
85. Re1+ {[%clk 0:00:15]}  Kd7 {[%clk 0:00:33]} 86. Kg8 {[%clk 0:00:16]}  Rf6 {[%clk 0:00:33]} 87. g7 {[%clk 0:00:17]}  Kd8 {[%clk 0:00:34]}
88. Kh7 {[%clk 0:00:18]}  Rf7 {[%clk 0:00:33]} 89. Kg6 {[%clk 0:00:19]} 1-0

[Event "2026 Biel Blitz Open"]
[Site "Biel, CH"]
[Date "2026.07.19"]
[Round "9"]
[White "Clausen, Martin"]
[Black "Tureshbayev, Anuar"]
[Result "1/2-1/2"]
[Board "12"]
[TimeControl "180+2"]
[WhiteFideId "1314882"]
[BlackFideId "651081709"]
[WhiteElo "1956"]
[BlackElo "2328"]
[BlackTitle "FM"]
[WhiteClock "0:00:22"]
[BlackClock "0:00:11"]
[Variant "Standard"]
[EndDate "2026.07.19"]
[EndTime "14:39:50"]

1. e4 {[%clk 0:03:01]}  c5 {[%clk 0:03:01]} 2. a3 {[%clk 0:03:02]}  e5 {[%clk 0:02:55]} 3. Bc4 {[%clk 0:03:02]}  Nf6 {[%clk 0:02:53]}
4. d3 {[%clk 0:03:03]}  Nc6 {[%clk 0:02:37]} 5. Nc3 {[%clk 0:03:02]}  Be7 {[%clk 0:02:37]} 6. Nge2 {[%clk 0:02:58]}  d6 {[%clk 0:02:36]}
7. O-O {[%clk 0:02:54]}  Be6 {[%clk 0:02:35]} 8. Bxe6 {[%clk 0:02:38]}  fxe6 {[%clk 0:02:35]} 9. f4 {[%clk 0:02:39]}  O-O {[%clk 0:02:27]}
10. fxe5 {[%clk 0:02:39]}  Nxe5 {[%clk 0:02:21]} 11. h3 {[%clk 0:02:07]}  d5 {[%clk 0:01:55]} 12. Nf4 {[%clk 0:01:55]}  d4 {[%clk 0:01:39]}
13. Nce2 {[%clk 0:01:29]}  Qd7 {[%clk 0:01:23]} 14. Ng3 {[%clk 0:01:23]}  Rac8 {[%clk 0:01:20]} 15. b3 {[%clk 0:01:24]}  b5 {[%clk 0:01:15]}
16. a4 {[%clk 0:01:20]}  c4 {[%clk 0:01:01]} 17. axb5 {[%clk 0:01:05]}  cxb3 {[%clk 0:01:02]} 18. cxb3 {[%clk 0:01:04]}  Bc5 {[%clk 0:00:50]}
19. Ba3 {[%clk 0:00:55]}  Bxa3 {[%clk 0:00:45]} 20. Rxa3 {[%clk 0:00:56]}  Rc3 {[%clk 0:00:38]} 21. Nge2 {[%clk 0:00:50]}  Rc5 {[%clk 0:00:34]}
22. Ra6 {[%clk 0:00:47]}  Re8 {[%clk 0:00:27]} 23. Ng3 {[%clk 0:00:45]}  Rxb5 {[%clk 0:00:23]} 24. Qa1 {[%clk 0:00:43]}  Rb7 {[%clk 0:00:20]}
25. Rc1 {[%clk 0:00:39]}  g5 {[%clk 0:00:14]} 26. Nfh5 {[%clk 0:00:39]}  Nxh5 {[%clk 0:00:13]} 27. Nxh5 {[%clk 0:00:40]}  Rf8 {[%clk 0:00:09]}
28. Rf1 {[%clk 0:00:41]}  Rxf1+ {[%clk 0:00:06]} 29. Qxf1 {[%clk 0:00:41]}  Qf7 {[%clk 0:00:06]} 30. Qc1 {[%clk 0:00:26]}  Rc7 {[%clk 0:00:04]}
31. Qxg5+ {[%clk 0:00:26]}  Ng6 {[%clk 0:00:04]} 32. Nf6+ {[%clk 0:00:26]}  Kh8 {[%clk 0:00:05]} 33. e5 {[%clk 0:00:25]}  Rc1+ {[%clk 0:00:06]}
34. Kh2 {[%clk 0:00:26]}  Rc8 {[%clk 0:00:03]} 35. Qg4 {[%clk 0:00:24]}  Nxe5 {[%clk 0:00:03]} 36. Qxe6 {[%clk 0:00:25]}  Qxe6 {[%clk 0:00:04]}
37. Rxe6 {[%clk 0:00:25]}  Nf7 {[%clk 0:00:04]} 38. Nh5 {[%clk 0:00:26]}  Ng5 {[%clk 0:00:01]} 39. Re7 {[%clk 0:00:26]}  h6 {[%clk 0:00:04]}
40. Rxa7 {[%clk 0:00:27]}  Rc3 {[%clk 0:00:06]} 41. Ra6 {[%clk 0:00:27]}  Rxd3 {[%clk 0:00:06]} 42. Rxh6+ {[%clk 0:00:27]}  Nh7 {[%clk 0:00:07]}
43. Nf6 {[%clk 0:00:28]}  Kg7 {[%clk 0:00:09]} 44. Rxh7+ {[%clk 0:00:29]}  Kxf6 {[%clk 0:00:10]} 45. Rd7 {[%clk 0:00:30]}  Ke5 {[%clk 0:00:12]}
46. h4 {[%clk 0:00:31]}  Rxb3 {[%clk 0:00:13]} 47. h5 {[%clk 0:00:32]}  Rb6 {[%clk 0:00:14]} 48. g4 {[%clk 0:00:31]}  Ke4 {[%clk 0:00:12]}
49. g5 {[%clk 0:00:28]}  d3 {[%clk 0:00:13]} 50. g6 {[%clk 0:00:27]}  Rb5 {[%clk 0:00:15]} 51. Re7+ {[%clk 0:00:19]}  Kf3 {[%clk 0:00:15]}
52. Rf7+ {[%clk 0:00:19]}  Ke2 {[%clk 0:00:16]} 53. Re7+ {[%clk 0:00:19]}  Kd1 {[%clk 0:00:16]} 54. g7 {[%clk 0:00:14]}  Rxh5+ {[%clk 0:00:17]}
55. Kg3 {[%clk 0:00:16]}  Rg5+ {[%clk 0:00:18]} 56. Kf4 {[%clk 0:00:16]}  Rg1 {[%clk 0:00:18]} 57. Rd7 {[%clk 0:00:16]}  Ke2 {[%clk 0:00:17]}
58. Kf5 {[%clk 0:00:16]}  d2 {[%clk 0:00:16]} 59. Kf6 {[%clk 0:00:17]}  Rf1+ {[%clk 0:00:15]} 60. Kg6 {[%clk 0:00:17]}  Rg1+ {[%clk 0:00:16]}
61. Kh7 {[%clk 0:00:18]}  Rh1+ {[%clk 0:00:17]} 62. Kg6 {[%clk 0:00:19]}  Rg1+ {[%clk 0:00:16]} 63. Kh7 {[%clk 0:00:20]}  Rxg7+ {[%clk 0:00:16]}
64. Kxg7 {[%clk 0:00:21]}  d1=Q {[%clk 0:00:16]} 65. Rxd1 {[%clk 0:00:22]}  Kxd1 {[%clk 0:00:11]} 1/2-1/2

[Event "2026 Biel Blitz Open"]
[Site "Biel, CH"]
[Date "2026.07.19"]
[Round "9"]
[White "Habibi, Ali"]
[Black "Kukushkin, Ivan"]
[Result "0-1"]
[Board "13"]
[TimeControl "180+2"]
[WhiteFideId "4604393"]
[BlackFideId "11634103"]
[WhiteElo "2116"]
[BlackElo "2265"]
[WhiteTitle "IM"]
[BlackTitle "FM"]
[WhiteClock "0:00:38"]
[BlackClock "0:00:30"]
[Variant "Standard"]
[EndDate "2026.07.19"]
[EndTime "14:42:09"]

1. Nf3 {[%clk 0:03:03]}  Nf6 {[%clk 0:03:03]} 2. g3 {[%clk 0:03:04]}  b6 {[%clk 0:03:03]} 3. Bg2 {[%clk 0:03:05]}  Bb7 {[%clk 0:03:04]}
4. O-O {[%clk 0:03:05]}  c5 {[%clk 0:03:05]} 5. d3 {[%clk 0:03:06]}  g6 {[%clk 0:03:02]} 6. e4 {[%clk 0:03:06]}  d6 {[%clk 0:03:03]}
7. Nc3 {[%clk 0:03:03]}  Bg7 {[%clk 0:03:04]} 8. Nd2 {[%clk 0:03:04]}  Qc8 {[%clk 0:02:55]} 9. a4 {[%clk 0:03:01]}  a6 {[%clk 0:02:53]}
10. Nc4 {[%clk 0:03:01]}  Nbd7 {[%clk 0:02:43]} 11. f4 {[%clk 0:02:56]}  h5 {[%clk 0:02:49]} 12. Qe2 {[%clk 0:02:49]}  Rb8 {[%clk 0:02:35]}
13. e5 {[%clk 0:02:39]}  dxe5 {[%clk 0:02:15]} 14. fxe5 {[%clk 0:02:40]}  Ng4 {[%clk 0:01:48]} 15. e6 {[%clk 0:02:40]}  Bd4+ {[%clk 0:01:47]}
16. Be3 {[%clk 0:02:24]}  Ndf6 {[%clk 0:01:35]} 17. exf7+ {[%clk 0:02:19]}  Kxf7 {[%clk 0:01:22]} 18. Bxd4 {[%clk 0:02:18]}  cxd4 {[%clk 0:01:18]}
19. Nd5 {[%clk 0:02:07]}  Qd8 {[%clk 0:01:09]} 20. Ncxb6 {[%clk 0:01:42]}  Kg7 {[%clk 0:00:59]} 21. Nxf6 {[%clk 0:01:42]}  exf6 {[%clk 0:00:58]}
22. Nc4 {[%clk 0:01:36]}  Bxg2 {[%clk 0:00:58]} 23. Qxg2 {[%clk 0:01:37]}  h4 {[%clk 0:00:57]} 24. gxh4 {[%clk 0:01:18]}  Rxh4 {[%clk 0:00:40]}
25. h3 {[%clk 0:01:20]}  Ne3 {[%clk 0:00:41]} 26. Nxe3 {[%clk 0:01:13]}  dxe3 {[%clk 0:00:42]} 27. Qg3 {[%clk 0:01:11]}  Rh5 {[%clk 0:00:38]}
28. Kh2 {[%clk 0:00:41]}  Rxb2 {[%clk 0:00:34]} 29. Rac1 {[%clk 0:00:38]}  Rb8 {[%clk 0:00:30]} 0-1

[Event "2026 Biel Blitz Open"]
[Site "Biel, CH"]
[Date "2026.07.19"]
[Round "9"]
[White "Fogo Esquivel, Levi Kalani Alexander"]
[Black "Ashwath Kaushik"]
[Result "1-0"]
[Board "14"]
[TimeControl "180+2"]
[WhiteFideId "5183189"]
[BlackFideId "33387230"]
[WhiteElo "2219"]
[BlackElo "2122"]
[WhiteTitle "FM"]
[BlackTitle "FM"]
[WhiteClock "0:00:47"]
[BlackClock "0:00:33"]
[Variant "Standard"]
[EndDate "2026.07.19"]
[EndTime "14:38:31"]

1. e4 {[%clk 0:03:03]}  c5 {[%clk 0:03:03]} 2. Nf3 {[%clk 0:03:05]}  e6 {[%clk 0:03:04]} 3. b3 {[%clk 0:03:05]}  Nc6 {[%clk 0:03:05]}
4. Bb2 {[%clk 0:03:05]}  Nf6 {[%clk 0:03:02]} 5. Nc3 {[%clk 0:02:57]}  d5 {[%clk 0:03:02]} 6. exd5 {[%clk 0:03:03]}  exd5 {[%clk 0:03:03]}
7. d4 {[%clk 0:03:04]}  cxd4 {[%clk 0:03:01]} 8. Nxd4 {[%clk 0:03:05]}  Bb4 {[%clk 0:03:00]} 9. Qe2+ {[%clk 0:02:59]}  Qe7 {[%clk 0:02:57]}
10. Qxe7+ {[%clk 0:02:58]}  Kxe7 {[%clk 0:02:57]} 11. O-O-O {[%clk 0:02:55]}  Be6 {[%clk 0:02:50]} 12. Nxe6 {[%clk 0:02:42]}  fxe6 {[%clk 0:02:49]}
13. Bd3 {[%clk 0:02:43]}  Rad8 {[%clk 0:02:46]} 14. a3 {[%clk 0:02:43]}  Bc5 {[%clk 0:02:45]} 15. f3 {[%clk 0:02:44]}  Rhe8 {[%clk 0:02:44]}
16. Rhe1 {[%clk 0:02:45]}  Kf7 {[%clk 0:02:45]} 17. g4 {[%clk 0:02:10]}  h6 {[%clk 0:02:40]} 18. h4 {[%clk 0:02:09]}  Bf2 {[%clk 0:02:39]}
19. Rh1 {[%clk 0:02:05]}  Be3+ {[%clk 0:02:40]} 20. Kb1 {[%clk 0:02:09]}  a6 {[%clk 0:02:29]} 21. Rde1 {[%clk 0:02:09]}  Bd2 {[%clk 0:02:29]}
22. Re2 {[%clk 0:02:10]}  Bxc3 {[%clk 0:02:29]} 23. Bxc3 {[%clk 0:02:11]}  d4 {[%clk 0:02:23]} 24. Bd2 {[%clk 0:02:08]}  Nd5 {[%clk 0:02:22]}
25. Kb2 {[%clk 0:02:04]}  e5 {[%clk 0:02:23]} 26. Rhe1 {[%clk 0:01:56]}  b5 {[%clk 0:02:16]} 27. f4 {[%clk 0:01:41]}  Nf6 {[%clk 0:01:53]}
28. fxe5 {[%clk 0:01:19]}  Nxg4 {[%clk 0:01:50]} 29. e6+ {[%clk 0:01:19]}  Kg8 {[%clk 0:01:34]} 30. Rg1 {[%clk 0:01:16]}  Nce5 {[%clk 0:01:30]}
31. Bf5 {[%clk 0:01:11]}  h5 {[%clk 0:01:20]} 32. Bf4 {[%clk 0:01:12]}  g6 {[%clk 0:01:11]} 33. Rxe5 {[%clk 0:00:48]}  gxf5 {[%clk 0:01:09]}
34. Rxf5 {[%clk 0:00:48]}  Rxe6 {[%clk 0:00:41]} 35. Rxh5 {[%clk 0:00:46]}  Rg6 {[%clk 0:00:40]} 36. Rg5 {[%clk 0:00:47]}  Kf7 {[%clk 0:00:33]}
37. Rxg6 {[%clk 0:00:47]} 1-0

[Event "2026 Biel Blitz Open"]
[Site "Biel, CH"]
[Date "2026.07.19"]
[Round "9"]
[White "Schweizer, Simon"]
[Black "Haugner, Jan"]
[Result "1/2-1/2"]
[Board "15"]
[TimeControl "180+2"]
[WhiteFideId "1325361"]
[BlackFideId "24655244"]
[WhiteElo "2182"]
[BlackElo "1976"]
[WhiteClock "0:00:18"]
[BlackClock "0:00:10"]
[Variant "Standard"]
[EndDate "2026.07.19"]
[EndTime "14:46:22"]

1. e4 {[%clk 0:03:03]}  c5 {[%clk 0:03:04]} 2. Nf3 {[%clk 0:03:04]}  d6 {[%clk 0:03:03]} 3. d4 {[%clk 0:03:05]}  cxd4 {[%clk 0:03:06]}
4. Nxd4 {[%clk 0:03:06]}  Nf6 {[%clk 0:03:08]} 5. Nc3 {[%clk 0:03:07]}  Bd7 {[%clk 0:03:09]} 6. h3 {[%clk 0:03:08]}  Nc6 {[%clk 0:03:05]}
7. Nb3 {[%clk 0:03:09]}  g6 {[%clk 0:03:06]} 8. g4 {[%clk 0:03:09]}  Be6 {[%clk 0:02:26]} 9. g5 {[%clk 0:03:06]}  Nd7 {[%clk 0:02:27]}
10. Ne2 {[%clk 0:03:01]}  Bg7 {[%clk 0:02:05]} 11. Nf4 {[%clk 0:02:54]}  Bxb3 {[%clk 0:01:53]} 12. axb3 {[%clk 0:02:54]}  O-O {[%clk 0:01:52]}
13. h4 {[%clk 0:02:50]}  Rc8 {[%clk 0:01:48]} 14. c3 {[%clk 0:02:50]}  Nde5 {[%clk 0:01:25]} 15. Be2 {[%clk 0:02:40]}  e6 {[%clk 0:01:21]}
16. Be3 {[%clk 0:02:38]}  Qe7 {[%clk 0:01:18]} 17. Ng2 {[%clk 0:02:27]}  Rfd8 {[%clk 0:01:12]} 18. f4 {[%clk 0:02:27]}  Nd7 {[%clk 0:01:13]}
19. O-O {[%clk 0:02:23]}  Nc5 {[%clk 0:00:49]} 20. Bf3 {[%clk 0:02:10]}  b6 {[%clk 0:00:42]} 21. b4 {[%clk 0:02:08]}  Nb7 {[%clk 0:00:34]}
22. Qe1 {[%clk 0:02:03]}  d5 {[%clk 0:00:25]} 23. e5 {[%clk 0:01:53]}  Qc7 {[%clk 0:00:22]} 24. b5 {[%clk 0:01:51]}  Ne7 {[%clk 0:00:23]}
25. Rxa7 {[%clk 0:01:48]}  Nf5 {[%clk 0:00:19]} 26. Bf2 {[%clk 0:01:48]}  Ra8 {[%clk 0:00:17]} 27. Rxa8 {[%clk 0:01:47]}  Rxa8 {[%clk 0:00:18]}
28. Ne3 {[%clk 0:01:47]}  Nc5 {[%clk 0:00:14]} 29. Nxf5 {[%clk 0:01:44]}  gxf5 {[%clk 0:00:12]} 30. Bd4 {[%clk 0:01:25]}  Ra2 {[%clk 0:00:13]}
31. Qb1 {[%clk 0:01:25]}  Qa7 {[%clk 0:00:12]} 32. Kh1 {[%clk 0:01:15]}  Bf8 {[%clk 0:00:14]} 33. b4 {[%clk 0:01:13]}  Nd7 {[%clk 0:00:06]}
34. Rg1 {[%clk 0:01:10]}  Qa3 {[%clk 0:00:07]} 35. h5 {[%clk 0:01:04]}  Rb2 {[%clk 0:00:08]} 36. Qf1 {[%clk 0:00:57]}  Rd2 {[%clk 0:00:06]}
37. Be3 {[%clk 0:00:40]}  Qxc3 {[%clk 0:00:07]} 38. Bxd2 {[%clk 0:00:41]}  Qxd2 {[%clk 0:00:09]} 39. g6 {[%clk 0:00:34]}  Qxf4 {[%clk 0:00:09]}
40. gxf7+ {[%clk 0:00:29]}  Kxf7 {[%clk 0:00:11]} 41. Qg2 {[%clk 0:00:18]}  Nxe5 {[%clk 0:00:12]} 42. Qg8+ {[%clk 0:00:17]}  Ke7 {[%clk 0:00:11]}
43. Qxh7+ {[%clk 0:00:17]}  Kd6 {[%clk 0:00:12]} 44. Bd1 {[%clk 0:00:14]}  Qh4+ {[%clk 0:00:13]} 45. Kg2 {[%clk 0:00:16]}  Qe4+ {[%clk 0:00:12]}
46. Kf1 {[%clk 0:00:16]}  Qd3+ {[%clk 0:00:11]} 47. Ke1 {[%clk 0:00:17]}  d4 {[%clk 0:00:09]} 48. Qb7 {[%clk 0:00:15]}  Qe3+ {[%clk 0:00:08]}
49. Kf1 {[%clk 0:00:17]}  Qh3+ {[%clk 0:00:08]} 50. Ke1 {[%clk 0:00:17]}  Qe3+ {[%clk 0:00:09]} 51. Kf1 {[%clk 0:00:18]}  Qh3+ {[%clk 0:00:10]} 1/2-1/2

[Event "2026 Biel Blitz Open"]
[Site "Biel, CH"]
[Date "2026.07.19"]
[Round "9"]
[White "Vihaan Dumir"]
[Black "Hakimifard, Ghazal"]
[Result "1-0"]
[Board "16"]
[TimeControl "180+2"]
[WhiteFideId "25901010"]
[BlackFideId "12506540"]
[WhiteElo "1965"]
[BlackElo "2130"]
[WhiteTitle "CM"]
[BlackTitle "WGM"]
[WhiteClock "0:00:15"]
[BlackClock "0:00:08"]
[Variant "Standard"]
[EndDate "2026.07.19"]
[EndTime "14:38:37"]

1. d4 {[%clk 0:03:04]}  Nf6 {[%clk 0:03:04]} 2. Bg5 {[%clk 0:03:05]}  Ne4 {[%clk 0:03:04]} 3. Bf4 {[%clk 0:03:06]}  d5 {[%clk 0:03:05]}
4. e3 {[%clk 0:03:06]}  e6 {[%clk 0:03:06]} 5. Nd2 {[%clk 0:03:07]}  b6 {[%clk 0:03:05]} 6. Nxe4 {[%clk 0:03:03]}  dxe4 {[%clk 0:03:06]}
7. f3 {[%clk 0:03:04]}  Bb7 {[%clk 0:03:06]} 8. fxe4 {[%clk 0:02:55]}  Bxe4 {[%clk 0:03:07]} 9. Nf3 {[%clk 0:02:55]}  Be7 {[%clk 0:03:04]}
10. Bd3 {[%clk 0:02:53]}  Bxd3 {[%clk 0:02:59]} 11. Qxd3 {[%clk 0:02:53]}  c5 {[%clk 0:02:58]} 12. O-O {[%clk 0:02:50]}  cxd4 {[%clk 0:02:57]}
13. Bxb8 {[%clk 0:02:41]}  Rxb8 {[%clk 0:02:56]} 14. Ne5 {[%clk 0:02:35]}  Qd5 {[%clk 0:02:12]} 15. exd4 {[%clk 0:01:26]}  O-O {[%clk 0:02:13]}
16. c3 {[%clk 0:01:20]}  b5 {[%clk 0:02:09]} 17. Qf3 {[%clk 0:01:13]}  Qxf3 {[%clk 0:01:28]} 18. Rxf3 {[%clk 0:01:13]}  Rbc8 {[%clk 0:01:26]}
19. a3 {[%clk 0:01:02]}  f6 {[%clk 0:01:25]} 20. Nd3 {[%clk 0:01:03]}  Rfd8 {[%clk 0:01:23]} 21. Re1 {[%clk 0:01:02]}  Rc6 {[%clk 0:01:11]}
22. Rfe3 {[%clk 0:01:00]}  Kf7 {[%clk 0:01:11]} 23. Nf4 {[%clk 0:01:00]}  Rd7 {[%clk 0:00:08]} 24. Rxe6 {[%clk 0:00:49]}  Rxe6 {[%clk 0:00:09]}
25. Nxe6 {[%clk 0:00:48]}  Bd6 {[%clk 0:00:07]} 26. g3 {[%clk 0:00:31]}  a5 {[%clk 0:00:09]} 27. Kf2 {[%clk 0:00:26]}  Bb8 {[%clk 0:00:05]}
28. Nc5 {[%clk 0:00:26]}  Rd5 {[%clk 0:00:04]} 29. b4 {[%clk 0:00:22]}  axb4 {[%clk 0:00:04]} 30. axb4 {[%clk 0:00:23]}  Ba7 {[%clk 0:00:04]}
31. Ra1 {[%clk 0:00:23]}  Bxc5 {[%clk 0:00:05]} 32. bxc5 {[%clk 0:00:24]}  Rd7 {[%clk 0:00:06]} 33. Ra6 {[%clk 0:00:21]}  b4 {[%clk 0:00:06]}
34. c6 {[%clk 0:00:18]}  Rd6 {[%clk 0:00:06]} 35. c7 {[%clk 0:00:15]}  Rxa6 {[%clk 0:00:03]} 36. c8=Q {[%clk 0:00:13]}  Ra2+ {[%clk 0:00:05]}
37. Kf3 {[%clk 0:00:13]}  bxc3 {[%clk 0:00:06]} 38. Qxc3 {[%clk 0:00:13]}  Kg6 {[%clk 0:00:07]} 39. Qd3+ {[%clk 0:00:13]}  f5 {[%clk 0:00:08]}
40. h4 {[%clk 0:00:13]}  Kf6 {[%clk 0:00:09]} 41. d5 {[%clk 0:00:14]}  h6 {[%clk 0:00:08]} 42. d6 {[%clk 0:00:15]} 1-0

[Event "2026 Biel Blitz Open"]
[Site "Biel, CH"]
[Date "2026.07.19"]
[Round "9"]
[White "Amonatov, Farrukh"]
[Black "El-Mais, Ibaa"]
[Result "1-0"]
[Board "17"]
[TimeControl "180+2"]
[WhiteFideId "14700077"]
[BlackFideId "1312715"]
[WhiteElo "2585"]
[BlackElo "2012"]
[WhiteTitle "GM"]
[WhiteClock "0:01:48"]
[BlackClock "0:00:03"]
[Variant "Standard"]
[EndDate "2026.07.19"]
[EndTime "14:36:26"]

1. e4 {[%clk 0:03:03]}  e5 {[%clk 0:03:03]} 2. Nf3 {[%clk 0:03:04]}  Nc6 {[%clk 0:03:04]} 3. Bb5 {[%clk 0:03:05]}  a6 {[%clk 0:03:05]}
4. Ba4 {[%clk 0:03:06]}  Nge7 {[%clk 0:03:06]} 5. O-O {[%clk 0:03:06]}  d6 {[%clk 0:03:07]} 6. c3 {[%clk 0:03:07]}  Bd7 {[%clk 0:03:03]}
7. d4 {[%clk 0:03:08]}  Ng6 {[%clk 0:03:00]} 8. Re1 {[%clk 0:03:02]}  Be7 {[%clk 0:03:01]} 9. Nbd2 {[%clk 0:03:03]}  O-O {[%clk 0:03:01]}
10. Nf1 {[%clk 0:03:04]}  Bg4 {[%clk 0:02:56]} 11. Bxc6 {[%clk 0:03:01]}  bxc6 {[%clk 0:02:57]} 12. h3 {[%clk 0:03:01]}  Be6 {[%clk 0:02:45]}
13. Ne3 {[%clk 0:02:52]}  Rb8 {[%clk 0:01:59]} 14. b3 {[%clk 0:02:52]}  Qc8 {[%clk 0:01:45]} 15. c4 {[%clk 0:02:39]}  exd4 {[%clk 0:01:25]}
16. Nxd4 {[%clk 0:02:39]}  Bf6 {[%clk 0:01:23]} 17. Rb1 {[%clk 0:02:37]}  Bd7 {[%clk 0:01:15]} 18. Bb2 {[%clk 0:02:22]}  Nf4 {[%clk 0:00:42]}
19. Ne2 {[%clk 0:02:13]}  Nxe2+ {[%clk 0:00:40]} 20. Qxe2 {[%clk 0:02:12]}  Bxb2 {[%clk 0:00:40]} 21. Qxb2 {[%clk 0:02:12]}  a5 {[%clk 0:00:41]}
22. Qc3 {[%clk 0:02:09]}  Qa6 {[%clk 0:00:41]} 23. c5 {[%clk 0:02:06]}  a4 {[%clk 0:00:37]} 24. b4 {[%clk 0:02:04]}  Be6 {[%clk 0:00:37]}
25. a3 {[%clk 0:02:04]}  Rfd8 {[%clk 0:00:21]} 26. Rbd1 {[%clk 0:02:02]}  Bb3 {[%clk 0:00:20]} 27. Nf5 {[%clk 0:01:58]}  f6 {[%clk 0:00:16]}
28. cxd6 {[%clk 0:01:53]}  Bxd1 {[%clk 0:00:01]} 29. dxc7 {[%clk 0:01:54]}  Bb3 {[%clk 0:00:04]} 30. Qg3 {[%clk 0:01:50]}  g6 {[%clk 0:00:03]}
31. cxb8=Q {[%clk 0:01:48]} 1-0